fUST/lending_fUST_20241101
["ID","MTS","AMOUNT","RATE_DAILY","PERIOD"]
[341120600,1730407840823,-290.224693,0.00036999,14]
[341120601,1730407840831,-151.0,0.00036999,14]
[341120602,1730407840841,-290.224693,0.00036999,14]
[341120603,1730407840850,-290.224693,0.00036999,14]
[341120604,1730407840860,-794.066373,0.00036999,14]
[341120605,1730407840870,-794.066373,0.00036999,14]
[341120606,1730407840880,-151.0,0.00036999,14]
[341120607,1730407840890,-249.23208,0.00036999,14]
[341120608,1730407840899,-249.23208,0.00036999,14]
[341120609,1730407840910,-151.0,0.00036999,14]
[341120610,1730407840925,-151.0,0.00036999,14]
[341120611,1730407840934,-235.095938,0.00036999,14]
[341120613,1730407840943,-235.095938,0.00036999,14]
[341120615,1730407840953,-584.572745,0.00036999,14]
[341120617,1730407840963,-584.572745,0.00036999,14]
[341120619,1730407840973,-151.0,0.00036999,14]
[341120620,1730407840982,-151.0,0.00036999,14]
[341120621,1730407840993,-151.0,0.00036999,14]
[341120622,1730407841003,-151.986635,0.00036999,14]
[341120623,1730407841014,-151.0,0.00036999,14]
[341120624,1730407841024,-151.0,0.00036999,14]
[341120625,1730407841034,-151.0,0.00036999,14]
[341120626,1730407841043,-151.0,0.00036999,14]
[341120627,1730407841053,-151.0,0.00036999,14]
[341120628,1730407841062,-151.0,0.00036999,2]
[341120629,1730407841074,-151.0,0.00036999,14]
[341120630,1730407841085,-151.0,0.00036999,14]
[341120631,1730407841096,-151.0,0.00036999,14]
[341120632,1730407841105,-151.0,0.00036999,14]
[341120633,1730407841114,-310.802882,0.00036999,14]
[341120634,1730407841123,-310.802882,0.00036999,14]
[341120635,1730407841133,-1000.0,0.00037,120]
[341120636,1730407841143,-30000.0,0.00037,4]
[341120637,1730407841152,-30000.0,0.00037,8]
[341120638,1730407841163,-500.0,0.00037,120]
[341120639,1730407841172,-3745.21008238,0.00037,30]
[341120640,1730407841182,-77831.40700436,0.00037,120]
[341120641,1730407841309,-1399.18,0.00036997,120]
[341120642,1730407841323,-7000.0,0.00036997,120]
[341120666,1730407843248,-1576.4,0.000344,2]
[341120667,1730407843258,-859.23,0.00036989,10]
[341120668,1730407843268,-1989.68,0.00036997,120]
[341120669,1730407843279,-10388.86,0.00036997,120]
[341120670,1730407843288,-10388.86,0.00036997,120]
[341120671,1730407843298,-10388.86,0.00036997,120]
[341120672,1730407843308,-10388.86,0.00036998,120]
[341120673,1730407843318,-10388.86,0.00036998,120]
[341120674,1730407843327,-10388.86,0.00036998,120]
[341120675,1730407843337,-10388.86,0.00036998,120]
[341120676,1730407843346,-10388.86,0.00036999,120]
[341120677,1730407843356,-10388.86,0.00036999,120]
[341120678,1730407843365,-10388.86,0.00036999,120]
[341120679,1730407843375,-10388.86,0.00036999,120]
[341120680,1730407843384,-10388.86,0.00036999,120]
[341120681,1730407843393,-10388.86,0.00036999,120]
[341120682,1730407843402,-10388.89348177,0.00036999,120]
[341120683,1730407843413,-71714.73768685,0.00037,120]
[341120684,1730407843423,-54093.58167419,0.00037,120]
[341120686,1730407843436,-79746.4925382,0.00037,120]
[341120688,1730407843448,-840.98124426,0.00037,120]
[341120689,1730407843459,-567.75497793,0.00037,120]
[341120722,1730407846248,-1399.51,0.00037,120]
[341120723,1730407846303,-293973.1769657,0.00037,120]
[341120725,1730407846313,-151.0,0.00037,14]
[341120727,1730407846323,-151.0,0.00037,14]
[341120728,1730407846333,-151.0,0.00037,14]
[341120729,1730407846342,-152.608929,0.00037,14]
[341120730,1730407846351,-151.0,0.00037,5]
[341120731,1730407846361,-151.0,0.00037,5]
[341120732,1730407846370,-152.9784,0.00037,14]
[341120733,1730407846379,-151.0,0.00037,14]
[341120734,1730407846389,-151.0,0.00037,14]
[341120736,1730407846399,-151.0,0.00037,14]
[341120738,1730407846408,-151.0,0.00037,14]
[341120739,1730407846418,-151.0,0.00037,14]
[341120740,1730407846427,-151.0,0.00037,14]
[341120741,1730407846436,-151.0,0.00037,14]
[341120742,1730407846445,-151.0,0.00037,14]
[341120743,1730407846455,-151.0,0.00037,14]
[341120744,1730407846464,-151.0,0.00037,14]
[341120745,1730407846474,-151.0,0.00037,14]
[341120746,1730407846484,-151.0,0.00037,14]
[341120747,1730407846493,-323.433633,0.00037,14]
[341120748,1730407846503,-323.433633,0.00037,14]
[341120749,1730407846512,-202.595834,0.00037,14]
[341120750,1730407846522,-202.595834,0.00037,14]
[341120751,1730407846531,-151.0,0.00037,14]
[341120752,1730407846540,-151.0,0.00037,14]
[341120753,1730407846549,-323.433633,0.00037,14]
[341120754,1730407846559,-323.433633,0.00037,14]
[341120755,1730407846568,-202.595834,0.00037,14]
[341120756,1730407846577,-202.595834,0.00037,14]
[341120757,1730407846587,-196.888075,0.00037,14]
[341120758,1730407846596,-180.810095,0.00037,14]
[341120759,1730407846605,-180.810095,0.00037,14]
[341120760,1730407846614,-180.810095,0.00037,14]
[341120761,1730407846623,-180.810095,0.00037,14]
[341120762,1730407846632,-151.0,0.00037,14]
[341120763,1730407846644,-151.0,0.00037,14]
[341120764,1730407846655,-151.0,0.00037,14]
[341120765,1730407846667,-151.0,0.00037,14]
[341120766,1730407846677,-151.0,0.00037,14]
[341120767,1730407846687,-151.0,0.00037,14]
[341120768,1730407846698,-242.163036,0.00037,14]
[341120769,1730407846708,-514.465022,0.00037,14]
[341120771,1730407846719,-514.465022,0.00037,14]
[341120772,1730407846731,-514.465022,0.00037,14]
[341120773,1730407846742,-514.465022,0.00037,14]
[341120774,1730407846752,-290.224693,0.00037,14]
[341120775,1730407846761,-290.224693,0.00037,14]
[341120776,1730407846770,-151.0,0.00037,14]
[341120777,1730407846780,-219.344914,0.00037,14]
[341120778,1730407846789,-290.224693,0.00037,14]
[341120779,1730407846798,-290.224693,0.00037,14]
[341120780,1730407846808,-794.066373,0.00037,14]
[341120781,1730407846818,-794.066373,0.00037,14]
[341120782,1730407846828,-794.066373,0.00037,14]
[341120783,1730407846838,-151.0,0.00037,14]
[341120784,1730407846846,-794.066373,0.00037,14]
[341120785,1730407846855,-151.0,0.00037,14]
[341120786,1730407846865,-249.23208,0.00037,14]
[341120787,1730407846874,-249.23208,0.00037,14]
[341120788,1730407846963,-249.23208,0.00037,14]
[341120789,1730407846972,-249.23208,0.00037,14]
[341120790,1730407846981,-151.0,0.00037,14]
[341120791,1730407846990,-151.0,0.00037,14]
[341120792,1730407847002,-151.0,0.00037,14]
[341120793,1730407847011,-151.0,0.00037,14]
[341120794,1730407847022,-669.7,0.00037,31]
[341120795,1730407847031,-669.7,0.00037,31]
[341120796,1730407847041,-669.7,0.00037,31]
[341120797,1730407847050,-669.7,0.00037,31]
[341120798,1730407847063,-669.7,0.00037,31]
[341120799,1730407847074,-669.7,0.00037,31]
[341120800,1730407847088,-669.7,0.00037,31]
[341120801,1730407847099,-669.7,0.00037,31]
[341120802,1730407847108,-669.7,0.00037,31]
[341120803,1730407847120,-669.7,0.00037,31]
[341120804,1730407847131,-669.7,0.00037,31]
[341120805,1730407847140,-669.7,0.00037,31]
[341120806,1730407847150,-669.7,0.00037,31]
[341120807,1730407847160,-669.7,0.00037,31]
[341120808,1730407847170,-669.7,0.00037,31]
[341120809,1730407847179,-669.7,0.00037,31]
[341120810,1730407847189,-669.7,0.00037,31]
[341120811,1730407847198,-669.7,0.00037,31]
[341120812,1730407847210,-669.7,0.00037,31]
[341120813,1730407847219,-669.7,0.00037,31]
[341120814,1730407847229,-669.7,0.00037,31]
[341120815,1730407847239,-669.7,0.00037,31]
[341120816,1730407847250,-669.7,0.00037,31]
[341120817,1730407847261,-669.7,0.00037,31]
[341120818,1730407847272,-235.095938,0.00037,14]
[341120819,1730407847286,-235.095938,0.00037,14]
[341120820,1730407847296,-235.095938,0.00037,14]
[341120821,1730407847306,-235.095938,0.00037,14]
[341120822,1730407847315,-584.572745,0.00037,14]
[341120823,1730407847326,-584.572745,0.00037,14]
[341120824,1730407847336,-584.572745,0.00037,14]
[341120825,1730407847347,-584.572745,0.00037,14]
[341120826,1730407847357,-151.0,0.00037,14]
[341120827,1730407847367,-151.0,0.00037,14]
[341120828,1730407847376,-151.0,0.00037,14]
[341120829,1730407847385,-151.0,0.00037,14]
[341120830,1730407847394,-151.0,0.00037,14]
[341120831,1730407847404,-151.0,0.00037,14]
[341120832,1730407847416,-151.0,0.00037,14]
[341120833,1730407847425,-151.0,0.00037,14]
[341120834,1730407847435,-151.0,0.00037,14]
[341120835,1730407847444,-151.0,0.00037,14]
[341120836,1730407847454,-151.0,0.00037,14]
[341120837,1730407847463,-151.0,0.00037,14]
[341120838,1730407847473,-151.0,0.00037,14]
[341120839,1730407847483,-151.0,0.00037,14]
[341120840,1730407847493,-151.0,0.00037,14]
[341120841,1730407847502,-151.0,0.00037,14]
[341120842,1730407847511,-151.0,0.00037,2]
[341120843,1730407847521,-151.0,0.00037,14]
[341120844,1730407847530,-151.0,0.00037,14]
[341120845,1730407847539,-151.0,0.00037,2]
[341120846,1730407847548,-151.0,0.00037,14]
[341120847,1730407847558,-151.0,0.00037,14]
[341120848,1730407847567,-153.225768,0.00037,14]
[341120849,1730407847576,-151.0,0.00037,14]
[341120850,1730407847585,-151.0,0.00037,14]
[341120851,1730407847595,-310.802882,0.00037,14]
[341120852,1730407847605,-310.802882,0.00037,14]
[341120853,1730407847615,-310.802882,0.00037,14]
[341120854,1730407847625,-310.802882,0.00037,14]
[341120855,1730407847634,-4000.0,0.00037025,120]
[341120856,1730407847645,-1000.0,0.00037029,120]
[341120857,1730407847655,-160.0,0.00037062,3]
[341120858,1730407847666,-233.59722888,0.00037062,5]
[341120859,1730407847675,-1000.0,0.000371,60]
[341120860,1730407847685,-280.38927,0.000371,120]
[341120861,1730407847695,-151.0,0.00037124,14]
[341120862,1730407847705,-151.0,0.00037124,5]
[341120863,1730407847718,-204345.90329708,0.00037125,2]
[341120864,1730407847728,-152.868135,0.00037125,14]
[341120865,1730407847738,-290.404447,0.00037125,14]
[341120866,1730407847748,-151.0,0.00037125,14]
[341120867,1730407847758,-151.0,0.00037125,14]
[341120868,1730407847767,-151.0,0.00037125,5]
[341120869,1730407847777,-151.0,0.00037125,14]
[341120870,1730407847786,-151.0,0.00037125,14]
[341120871,1730407847795,-164.948241,0.00037125,14]
[341120872,1730407847804,-151.0,0.00037125,14]
[341120873,1730407847813,-151.0,0.00037125,14]
[341120874,1730407847823,-151.0,0.00037125,14]
[341120875,1730407847832,-323.433633,0.00037125,14]
[341120876,1730407847841,-202.595834,0.00037125,14]
[341120877,1730407847851,-151.0,0.00037125,14]
[341120878,1730407847861,-323.433633,0.00037125,14]
[341120879,1730407847871,-202.595834,0.00037125,14]
[341120880,1730407847880,-180.810095,0.00037125,14]
[341120881,1730407847890,-180.810095,0.00037125,14]
[341120882,1730407847900,-151.0,0.00037125,14]
[341120883,1730407847911,-151.0,0.00037125,14]
[341120884,1730407847924,-151.0,0.00037125,14]
[341120885,1730407847934,-514.465022,0.00037125,14]
[341120886,1730407847944,-514.465022,0.00037125,14]
[341120887,1730407847953,-290.224693,0.00037125,14]
[341120888,1730407847965,-290.224693,0.00037125,14]
[341120889,1730407847975,-794.066373,0.00037125,14]
[341120890,1730407847984,-794.066373,0.00037125,14]
[341120891,1730407847995,-227.801504,0.00037125,14]
[341120892,1730407848004,-249.23208,0.00037125,14]
[341120893,1730407848015,-249.23208,0.00037125,14]
[341120894,1730407848024,-151.0,0.00037125,14]
[341120895,1730407848033,-151.0,0.00037125,14]
[341120896,1730407848043,-235.095938,0.00037125,14]
[341120897,1730407848052,-235.095938,0.00037125,14]
[341120898,1730407848061,-584.572745,0.00037125,14]
[341120899,1730407848071,-584.572745,0.00037125,14]
[341120900,1730407848081,-151.0,0.00037125,14]
[341120901,1730407848090,-151.0,0.00037125,14]
[341120902,1730407848099,-151.0,0.00037125,14]
[341120903,1730407848108,-151.0,0.00037125,14]
[341120904,1730407848118,-151.0,0.00037125,14]
[341120905,1730407848128,-151.0,0.00037125,14]
[341120906,1730407848137,-151.0,0.00037125,14]
[341120907,1730407848146,-151.0,0.00037125,14]
[341120908,1730407848155,-151.0,0.00037125,14]
[341120909,1730407848166,-151.0,0.00037125,2]
[341120910,1730407848176,-151.0,0.00037125,14]
[341120911,1730407848185,-151.0,0.00037125,14]
[341120912,1730407848194,-310.802882,0.00037125,14]
[341120913,1730407848204,-310.802882,0.00037125,14]
[341120914,1730407848215,-500.0,0.00037173,5]
[341120915,1730407848224,-500.0,0.00037173,5]
[341120916,1730407848234,-500.0,0.00037173,5]
[341120917,1730407848243,-500.0,0.00037173,5]
[341120918,1730407848254,-930.78,0.000372,30]
[341120919,1730407848264,-21799.23,0.000372,30]
[341120920,1730407848273,-1034.31,0.000372,30]
[341120921,1730407848283,-151.8,0.000372,30]
[341120922,1730407848293,-234.39,0.000372,30]
[341120923,1730407848302,-151.0,0.00037299,14]
[341120924,1730407848312,-151.0,0.00037299,14]
[341120925,1730407848323,-151.0,0.00037299,2]
[341120926,1730407848333,-290.039492,0.00037299,14]
[341120927,1730407848344,-151.0,0.00037299,14]
[341120928,1730407848354,-1000.0,0.00037303,120]
[341120929,1730407848364,-180.810095,0.00037399,14]
[341120930,1730407848374,-180.810095,0.00037399,14]
[341120931,1730407848384,-151.0,0.00037399,14]
[341120932,1730407848394,-151.0,0.00037399,14]
[341120933,1730407848404,-151.0,0.00037399,14]
[341120934,1730407848416,-514.465022,0.00037399,14]
[341120935,1730407848425,-514.465022,0.00037399,14]
[341120936,1730407848434,-290.224693,0.00037399,14]
[341120937,1730407848443,-290.224693,0.00037399,14]
[341120938,1730407848453,-794.066373,0.00037399,14]
[341120939,1730407848462,-794.066373,0.00037399,14]
[341120940,1730407848471,-249.23208,0.00037399,14]
[341120941,1730407848482,-249.23208,0.00037399,14]
[341120942,1730407848492,-584.572745,0.00037399,14]
[341120943,1730407848502,-584.572745,0.00037399,14]
[341120944,1730407848512,-151.0,0.000374,14]
[341120945,1730407848521,-300.0,0.000374,19]
[341120946,1730407848530,-152.036263,0.000374,14]
[341120947,1730407848539,-151.0,0.000374,5]
[341120948,1730407848548,-151.0,0.000374,14]
[341120949,1730407848558,-151.0,0.000374,14]
[341120950,1730407848567,-237.797046,0.000374,14]
[341120951,1730407848577,-151.0,0.000374,14]
[341120952,1730407848587,-151.0,0.000374,14]
[341120953,1730407848596,-323.433633,0.000374,14]
[341120954,1730407848606,-202.595834,0.000374,14]
[341120955,1730407848617,-151.0,0.000374,14]
[341120956,1730407848626,-323.433633,0.000374,14]
[341120957,1730407848638,-202.595834,0.000374,14]
[341120958,1730407848650,-151.0,0.000374,14]
[341120959,1730407848660,-151.0,0.000374,14]
[341120960,1730407848670,-235.095938,0.000374,14]
[341120961,1730407848680,-235.095938,0.000374,14]
[341120962,1730407848691,-151.0,0.000374,14]
[341120963,1730407848702,-151.0,0.000374,14]
[341120964,1730407848712,-159.670919,0.000374,14]
[341120965,1730407848722,-151.0,0.000374,14]
[341120966,1730407848731,-151.0,0.000374,14]
[341120967,1730407848740,-151.671228,0.000374,14]
[341120968,1730407848749,-310.802882,0.000374,14]
[341120969,1730407848759,-310.802882,0.000374,14]
[341120970,1730407848769,-199.72510401,0.000374,14]
[341120971,1730407848779,-30000.0,0.000374,10]
[341120972,1730407848788,-500.0,0.00037419,5]
[341120973,1730407848798,-500.0,0.00037452,14]
[341120974,1730407848807,-500.0,0.00037467,14]
[341120975,1730407848817,-500.0,0.00037467,14]
[341120976,1730407848826,-500.0,0.00037467,14]
[341120977,1730407848837,-500.0,0.00037467,14]
[341120978,1730407848846,-500.0,0.00037476,14]
[341120979,1730407848857,-500.0,0.00037476,14]
[341120980,1730407848867,-500.0,0.00037476,14]
[341120981,1730407848876,-500.0,0.00037476,14]
[341120982,1730407848885,-500.0,0.00037476,14]
[341120983,1730407848895,-27669.70266999,0.00037484,120]
[341120984,1730407848903,-1500.0,0.000375,2]
[341120985,1730407848914,-1500.0,0.000375,2]
[341120986,1730407848926,-1500.0,0.000375,2]
[341120987,1730407848937,-1500.0,0.000375,2]
[341120988,1730407848946,-1500.0,0.000375,2]
[341120989,1730407848956,-1500.0,0.000375,2]
[341120990,1730407848966,-1500.0,0.000375,2]
[341120991,1730407848976,-1588.52,0.000375,2]
[341120992,1730407848987,-1500.0,0.000375,2]
[341120993,1730407849001,-1500.0,0.000375,2]
[341120994,1730407849011,-1500.0,0.000375,2]
[341120995,1730407849021,-323838.02487827,0.000375,60]
[341120996,1730407849036,-6897.25118742,0.000375,60]
[341121010,1730408088928,157.646979,0.00013973,2]
[341121012,1730408587683,167.670385,0.00013973,2]
[341121063,1730409036925,-360.5,0.00028586,2]
[341121121,1730409038463,-575.035738,0.00028586,2]
[341121123,1730409038473,-299.5780636,0.00028784,2]
[341121125,1730409038482,-246.338102,0.00029111,2]
[341121127,1730409038492,-246.338102,0.00029191,2]
[341121129,1730409038501,-246.338102,0.00029271,2]
[341121131,1730409038511,-935.535738,0.00029271,2]
[341121133,1730409038520,-157.646979,0.00029349,2]
[341121135,1730409038531,-246.338102,0.00029351,2]
[341121137,1730409038540,-246.338102,0.00029431,2]
[341121139,1730409038550,-246.338102,0.0002951,2]
[341121141,1730409038559,-246.338102,0.0002959,2]
[341121143,1730409038568,-246.338102,0.0002967,2]
[341121145,1730409038578,-246.338102,0.0002975,2]
[341121148,1730409038589,-246.338102,0.0002983,2]
[341121150,1730409038598,-246.338102,0.0002991,2]
[341121152,1730409038607,-935.535738,0.00029956,2]
[341121154,1730409038617,-165.18922583,0.00029969,2]
[341121156,1730409038629,-246.338102,0.00029989,2]
[341121158,1730409038639,-165.18922581,0.00030049,2]
[341121160,1730409038648,-246.338102,0.00030069,2]
[341121162,1730409038657,-165.18922581,0.00030129,2]
[341121164,1730409038667,-482.5430759,0.00030147,2]
[341121166,1730409038676,-246.338102,0.00030149,2]
[341121168,1730409038686,-300.0,0.00030192,2]
[341121170,1730409038695,-300.0,0.00030192,2]
[341121172,1730409038704,-24900.0,0.00030193,2]
[341121174,1730409038713,-246.338102,0.00030229,2]
[341121176,1730409038723,-246.338102,0.00030309,2]
[341121178,1730409038732,-246.338102,0.00030389,2]
[341121180,1730409038741,-246.338102,0.00030468,2]
[341121181,1730409038750,-157.809671,0.00030517,2]
[341121183,1730409038760,-246.338102,0.00030548,2]
[341121184,1730409038769,-246.338102,0.00030628,2]
[341121186,1730409038780,-1330.4166275,0.00031365,2]
[341121187,1730409038789,-776.9925243,0.00031439,2]
[341121189,1730409038799,-194.2327896,0.00031439,2]
[341121190,1730409038809,-173.166614,0.00033717,2]
[341121191,1730409038818,-268.08,0.000343,31]
[341121192,1730409038827,-268.08,0.000343,31]
[341121193,1730409038837,-268.08,0.000343,31]
[341121194,1730409038846,-268.08,0.000343,31]
[341121195,1730409038856,-268.08,0.000343,31]
[341121196,1730409038865,-268.08,0.000343,31]
[341121197,1730409038874,-268.08,0.000343,31]
[341121198,1730409038884,-268.08,0.000343,31]
[341121199,1730409038894,-268.08,0.000343,31]
[341121200,1730409038905,-268.08,0.000343,31]
[341121201,1730409038914,-268.08,0.000343,31]
[341121202,1730409038924,-268.08,0.000343,31]
[341121203,1730409038933,-535.29609126,0.000343,7]
[341121204,1730409038942,-500.0,0.00034399,2]
[341121205,1730409038952,-1418.76,0.000344,2]
[341121206,1730409038961,-328.696701,0.000344,17]
[341121207,1730409038970,-158.93371464,0.00034541,9]
[341121208,1730409038979,-500.0,0.00034998,7]
[341121209,1730409038989,-500.0,0.00034998,7]
[341121210,1730409038998,-500.0,0.00034998,7]
[341121211,1730409039007,-500.0,0.00034998,7]
[341121212,1730409039016,-500.0,0.00034998,7]
[341121213,1730409039026,-500.0,0.00034998,7]
[341121214,1730409039036,-500.0,0.00034998,7]
[341121215,1730409039046,-500.0,0.00034998,7]
[341121216,1730409039055,-500.0,0.00034998,7]
[341121217,1730409039064,-500.0,0.00034998,7]
[341121218,1730409039073,-229.0486402,0.00034998,7]
[341121219,1730409039082,-500.0,0.00034998,7]
[341121220,1730409039092,-240.0,0.00034998,7]
[341121221,1730409039101,-500.0,0.00034998,7]
[341121222,1730409039110,-500.0,0.00034998,7]
[341121223,1730409039119,-500.0,0.00034998,7]
[341121224,1730409039129,-500.0,0.00034998,7]
[341121225,1730409039140,-500.0,0.00034998,7]
[341121226,1730409039149,-500.0,0.00034998,7]
[341121227,1730409039158,-500.0,0.00034998,7]
[341121228,1730409039167,-500.0,0.00034998,7]
[341121229,1730409039177,-500.0,0.00034998,7]
[341121230,1730409039188,-393.27537242,0.00034998,7]
[341121231,1730409039201,-106.72462758,0.00034998,7]
[341121232,1730409039210,-393.27537242,0.00034998,7]
[341121234,1730409039272,-106.72462758,0.00034998,7]
[341121235,1730409039282,-500.0,0.00034998,7]
[341121236,1730409039291,-500.0,0.00034998,7]
[341121237,1730409039300,-500.0,0.00034998,7]
[341121238,1730409039309,-596.48222769,0.00034998,7]
[341121239,1730409039319,-500.0,0.00034998,7]
[341121240,1730409039327,-1334.45474234,0.00035,7]
[341121241,1730409039337,-268.08,0.000356,31]
[341121242,1730409039346,-268.08,0.000356,31]
[341121243,1730409039356,-268.08,0.000356,31]
[341121244,1730409039365,-268.08,0.000356,31]
[341121245,1730409039378,-268.08,0.000356,31]
[341121246,1730409039388,-268.08,0.000356,31]
[341121247,1730409039398,-268.08,0.000356,31]
[341121248,1730409039408,-268.08,0.000356,31]
[341121249,1730409039419,-268.08,0.000356,31]
[341121250,1730409039431,-268.08,0.000356,31]
[341121251,1730409039442,-268.08,0.000356,31]
[341121252,1730409039452,-268.08,0.000356,31]
[341121253,1730409039462,-268.08,0.000356,31]
[341121254,1730409039472,-268.08,0.000356,31]
[341121255,1730409039481,-268.08,0.000356,31]
[341121256,1730409039491,-268.08,0.000356,31]
[341121257,1730409039502,-268.08,0.000356,31]
[341121258,1730409039513,-268.08,0.000356,31]
[341121259,1730409039524,-268.08,0.000356,31]
[341121260,1730409039536,-268.08,0.000356,31]
[341121261,1730409039546,-268.08,0.000356,31]
[341121262,1730409039555,-268.08,0.000356,31]
[341121263,1730409039564,-268.08,0.000356,31]
[341121264,1730409039573,-268.08,0.000356,31]
[341121265,1730409039582,-250.70781457,0.00035616,5]
[341121266,1730409039592,-179.377,0.0003657,2]
[341121267,1730409039601,-8875.03988763,0.00036855,2]
[341121268,1730409039610,-268.08,0.00037,31]
[341121269,1730409039622,-268.08,0.00037,31]
[341121270,1730409039632,-268.08,0.00037,31]
[341121271,1730409039642,-268.08,0.00037,31]
[341121272,1730409039655,-268.08,0.00037,31]
[341121273,1730409039664,-268.08,0.00037,31]
[341121274,1730409039674,-268.08,0.00037,31]
[341121275,1730409039683,-268.08,0.00037,31]
[341121276,1730409039694,-268.08,0.00037,31]
[341121277,1730409039704,-268.08,0.00037,31]
[341121278,1730409039713,-268.08,0.00037,31]
[341121279,1730409039723,-268.08,0.00037,31]
[341121280,1730409039732,-268.08,0.00037,31]
[341121281,1730409039741,-268.08,0.00037,31]
[341121282,1730409039751,-268.08,0.00037,31]
[341121283,1730409039760,-268.08,0.00037,31]
[341121284,1730409039770,-268.08,0.00037,31]
[341121286,1730409039780,-268.08,0.00037,31]
[341121287,1730409039790,-268.08,0.00037,31]
[341121289,1730409039800,-268.08,0.00037,31]
[341121290,1730409039810,-268.08,0.00037,31]
[341121291,1730409039819,-268.08,0.00037,31]
[341121292,1730409039829,-268.08,0.00037,31]
[341121293,1730409039839,-186.329588,0.00037,31]
[341121302,1730409040454,-81.750412,0.00037,31]
[341121303,1730409040464,-500.0,0.0003701,5]
[341121304,1730409040474,-403.06145724,0.0003701,2]
[341121344,1730409046422,-96.93854276,0.0003701,2]
[341121345,1730409046432,-500.0,0.0003701,5]
[341121346,1730409046441,-8875.03988764,0.00037058,2]
[341121347,1730409046451,-500.0,0.00037139,5]
[341121348,1730409046461,-668.90354999,0.0003721,2]
[341121349,1730409046472,-668.90354998,0.00037258,2]
[341121350,1730409046481,-668.90354998,0.00037305,2]
[341121351,1730409046491,-999.0,0.00037312,120]
[341121352,1730409046500,-668.90354998,0.00037353,2]
[341121353,1730409046509,-1000.0,0.00037399,120]
[341121354,1730409046519,-1000.0,0.000374,2]
[341121355,1730409046529,-668.90354998,0.000374,2]
[341121356,1730409046542,-355.70999723,0.00037499,15]
[341121357,1730409046553,-416.59269794,0.00037499,15]
[341121358,1730409046562,-410.17023083,0.00037499,15]
[341121359,1730409046571,-377.68001508,0.00037499,15]
[341121360,1730409046580,-418.59735645,0.00037499,15]
[341121362,1730409046591,-322.64016432,0.00037499,15]
[341121363,1730409046601,-214.18563789,0.00037499,15]
[341121365,1730409046610,-408.05250023,0.00037499,15]
[341121366,1730409046620,-500.0,0.00037499,15]
[341121367,1730409046630,-500.0,0.00037499,15]
[341121368,1730409046639,-252.82705008,0.00037499,15]
[341121369,1730409046650,-476.72716506,0.00037499,15]
[341121370,1730409046659,-190.50536469,0.00037499,15]
[341121371,1730409046669,-360.0,0.00037499,15]